fUSD/lending_fUSD_20250209
["ID","MTS","AMOUNT","RATE_DAILY","PERIOD"]
[352395859,1739076651638,-526.88,0.00010616,2]
[352395860,1739076651651,-1294.54,0.00010616,2]
[352395861,1739076651663,-500.0,0.00010616,2]
[352395862,1739076651674,-532.97,0.00010616,2]
[352395863,1739076651685,-569.17,0.00010616,2]
[352395864,1739076651695,-595.69,0.00010616,2]
[352395865,1739076651706,-561.26,0.00010616,2]
[352395866,1739076651716,-614.2,0.00010616,2]
[352395867,1739076651728,-934.74,0.00010616,2]
[352395868,1739076651740,-1217.68,0.00010616,2]
[352395869,1739076651751,-576.79,0.00010616,2]
[352395870,1739076651761,-2420.22,0.00010616,2]
[352395871,1739076651772,-500.0,0.00010616,2]
[352395872,1739076651783,-500.0,0.00010616,2]
[352395873,1739076651794,-553.85,0.00010616,2]
[352395874,1739076651805,-802.79,0.00010616,2]
[352395875,1739076651815,-500.0,0.00010616,2]
[352395876,1739076651826,-500.0,0.00010616,2]
[352395877,1739076651837,-696.38,0.00010616,2]
[352395878,1739076651849,-551.08772663,0.00010616,2]
[352395879,1739076651859,-710.21,0.00010616,2]
[352395880,1739076651870,-500.0,0.00010616,2]
[352395881,1739076651881,-578.14,0.00010616,2]
[352395882,1739076651891,-930.43,0.00010616,2]
[352395883,1739076651900,-500.0,0.00010616,2]
[352395884,1739076651910,-500.0,0.00010616,2]
[352395885,1739076651919,-951.34,0.00010616,2]
[352395886,1739076651928,-1820.59,0.00010616,2]
[352395887,1739076651938,-500.0,0.00010616,2]
[352395888,1739076651947,-500.0,0.00010616,2]
[352395889,1739076651956,-593.69,0.00010616,2]
[352395890,1739076651966,-500.0,0.00010616,2]
[352395891,1739076651976,-505.59,0.00010616,2]
[352395892,1739076651986,-260.86545222,0.00010616,2]
[352395893,1739076651996,-768.25,0.00010616,2]
[352395894,1739076652005,-1073.3,0.00010616,2]
[352395895,1739076652015,-500.0,0.00010616,2]
[352395896,1739076652024,-150.0,0.00010631,2]
[352395897,1739076652033,-150.0,0.00010668,2]
[352395898,1739076652043,-500.0,0.00010684,2]
[352395899,1739076652052,-500.0,0.00010684,2]
[352395900,1739076652061,-500.0,0.00010684,2]
[352395901,1739076652070,-150.0,0.00010712,2]
[352395902,1739076652079,-534.30373843,0.00010726,2]
[352395903,1739076652089,-150.0,0.00010728,2]
[352395904,1739076652099,-313.59,0.00010747,2]
[352395905,1739076652108,-240.58599843,0.00010753,2]
[352395906,1739076652117,-659.91,0.00010753,2]
[352395907,1739076652127,-776.05,0.00010753,2]
[352395908,1739076652136,-1523.21,0.00010753,2]
[352395909,1739076652145,-788.97,0.00010753,2]
[352395910,1739076652154,-500.0,0.00010753,2]
[352395911,1739076652163,-601.66,0.00010753,2]
[352395912,1739076652172,-875.01,0.00010753,2]
[352395913,1739076652181,-500.0,0.00010753,2]
[352395914,1739076652192,-500.0,0.00010753,2]
[352395915,1739076652512,-562.88,0.00010753,2]
[352395916,1739076652534,-620.7370525,0.00010753,2]
[352395917,1739076652550,-500.0,0.00010753,2]
[352395918,1739076652563,-500.0,0.00010753,2]
[352395919,1739076652572,-500.0,0.00010753,2]
[352395920,1739076652582,-868.43,0.00010753,2]
[352395921,1739076652591,-1231.28,0.00010753,2]
[352395922,1739076652602,-500.0,0.00010753,2]
[352395923,1739076652611,-500.0,0.00010753,2]
[352395924,1739076652621,-526.88,0.00010753,2]
[352395925,1739076652630,-1294.54,0.00010753,2]
[352395926,1739076652640,-500.0,0.00010753,2]
[352395927,1739076652649,-532.97,0.00010753,2]
[352395928,1739076652659,-569.17,0.00010753,2]
[352395929,1739076652668,-595.69,0.00010753,2]
[352395930,1739076652678,-561.26,0.00010753,2]
[352395931,1739076652687,-614.2,0.00010753,2]
[352395932,1739076652696,-934.74,0.00010753,2]
[352395933,1739076652706,-1217.68,0.00010753,2]
[352395934,1739076652715,-576.79,0.00010753,2]
[352395935,1739076652725,-2420.22,0.00010753,2]
[352395936,1739076652734,-225.56668808,0.00010753,2]
[352395937,1739076652743,-500.0,0.00010753,2]
[352395938,1739076652753,-553.85,0.00010753,2]
[352395939,1739076652762,-802.79,0.00010753,2]
[352395940,1739076652771,-500.0,0.00010753,2]
[352395941,1739076652781,-500.0,0.00010753,2]
[352395942,1739076652790,-696.38,0.00010753,2]
[352395943,1739076652800,-710.21,0.00010753,2]
[352395944,1739076652808,-500.0,0.00010753,2]
[352395945,1739076652818,-578.14,0.00010753,2]
[352395946,1739076652827,-930.43,0.00010753,2]
[352395947,1739076652837,-509.65729332,0.00010753,2]
[352395948,1739076652847,-500.0,0.00010753,2]
[352395949,1739076652856,-951.34,0.00010753,2]
[352395950,1739076652865,-570.74831793,0.00010753,2]
[352395951,1739076652892,-1249.84168207,0.00010753,2]
[352395952,1739076652901,-500.0,0.00010753,2]
[352395953,1739076652911,-207.09831793,0.00010753,2]
[352395954,1739076652925,-292.90168207,0.00010753,2]
[352395955,1739076652934,-593.69,0.00010753,2]
[352395956,1739076652946,-500.0,0.00010753,2]
[352395957,1739076652956,-257.32453252,0.00010753,2]
[352395958,1739076653435,-500.0,8.835e-05,2]
[352395959,1739076653445,-318.22497873,8.835e-05,2]
[352395960,1739076653468,-185.02676228,8.835e-05,2]
[352395961,1739076653479,-503.17388113,8.835e-05,2]
[352395962,1739076653490,-500.0,8.972e-05,2]
[352395963,1739076653501,-500.0,9.109e-05,2]
[352395964,1739076653512,-9980.0,9.2e-05,10]
[352395965,1739076653521,-500.0,9.246e-05,2]
[352395966,1739076653532,-500.0,9.383e-05,2]
[352395967,1739076653541,-500.0,9.52e-05,2]
[352395968,1739076653553,-500.0,9.657e-05,2]
[352395969,1739076653567,-500.0,9.794e-05,2]
[352395970,1739076653578,-226.73269187,9.931e-05,2]
[352395971,1739076653589,-248.26546748,0.00010753,2]
[352395972,1739076653599,-768.25,0.00010753,2]
[352395973,1739076653609,-1073.3,0.00010753,2]
[352395974,1739076653621,-500.0,0.00010753,2]
[352395975,1739076653631,-150.0,0.00010784,2]
[352395976,1739076653641,-150.0,0.00010792,2]
[352395977,1739076653651,-500.0,0.00010821,2]
[352395978,1739076653661,-500.0,0.00010821,2]
[352395979,1739076653671,-500.0,0.00010821,2]
[352395980,1739076653680,-313.81627832,0.00010825,2]
[352395981,1739076653689,-75225.70024707,0.00010825,2]
[352395982,1739076653698,-66862.32387041,0.00010827,2]
[352395983,1739076653710,-353.43,0.00010827,2]
[352395984,1739076653722,-1574.59846429,0.00010827,2]
[352395985,1739076653733,-1016.2321986,0.00010827,2]
[352395986,1739076653744,-488.45942115,0.00010827,2]
[352395987,1739076653755,-670.435461,0.00010827,2]
[352395988,1739076653767,-3593.88520939,0.00010827,2]
[352395989,1739076653778,-1011.86821652,0.00010827,2]
[352395990,1739076653796,-2453.51459993,0.00010827,2]
[352395991,1739076653818,-14247.0,0.00010827,2]
[352395992,1739076653967,-945.1685,8.699e-05,2]
[352395993,1739076653976,-500.0,8.835e-05,2]
[352395994,1739076653985,-33147.33290694,0.00010827,2]
[352395995,1739076653994,-1286.70168638,0.00010827,2]
[352395996,1739076654003,-62114.78085533,0.00010827,2]
[352395997,1739076654012,-247257.09214586,0.00010829,2]
[352395998,1739076654023,-566.84138598,0.00010829,2]
[352395999,1739076654034,-23290.75191803,0.00010829,2]
[352396000,1739076654043,-900.17701083,0.00010829,2]
[352396001,1739076654052,-40113.37848559,0.00010831,2]
[352396002,1739076654061,-900.17701083,0.00010831,2]
[352396003,1739076654069,-8674.82431711,0.00010832,2]
[352396004,1739076654079,-864.82696148,0.00010833,2]
[352396005,1739076654088,-8674.82431711,0.00010834,2]
[352396006,1739076654098,-8379.16743371,0.00010836,2]
[352396007,1739076654107,-25137.50230111,0.00010836,2]
[352396008,1739076654116,-271114.68544985,0.00010838,2]
[352396009,1739076654126,-900.17701083,0.0001084,2]
[352396010,1739076654135,-1286.70168638,0.00010842,2]
[352396011,1739076654144,-40113.37848559,0.00010844,2]
[352396012,1739076654155,-75225.70024707,0.00010846,2]
[352396013,1739076654165,-1286.70168638,0.00010847,2]
[352396014,1739076654175,-62114.78085533,0.00010848,2]
[352396015,1739076654184,-864.82696148,0.00010848,2]
[352396016,1739076654193,-16143.73862234,0.00010848,2]
[352396017,1739076654203,-200.0,0.00010848,2]
[352396018,1739076654212,-864.82696148,0.0001085,2]
[352396019,1739076654221,-75225.70024707,0.0001085,2]
[352396020,1739076654230,-125419.08034823,0.00010851,2]
[352396021,1739076654240,-8674.82431711,0.00010854,2]
[352396022,1739076654249,-16143.73862234,0.00010856,2]
[352396023,1739076654259,-7468.91430523,0.00010857,2]
[352396024,1739076654268,-8379.16743371,0.00010857,2]
[352396025,1739076654278,-8379.16743371,0.00010858,2]
[352396026,1739076654287,-25137.50230111,0.00010858,2]
[352396027,1739076654296,-313.81627832,0.00010861,2]
[352396028,1739076654305,-500.0,0.00010862,2]
[352396029,1739076654314,-587.15,0.00010862,2]
[352396030,1739076654323,-829.28,0.00010862,2]
[352396031,1739076654334,-500.0,0.00010862,2]
[352396032,1739076654343,-25137.50230111,0.00010862,2]
[352396033,1739076654353,-376.42,0.00010863,2]
[352396034,1739076654363,-271114.68544985,0.00010863,2]
[352396035,1739076654372,-271114.68544985,0.00010868,2]
[352396036,1739076654380,-1286.70168638,0.00010868,2]
[352396037,1739076654389,-75225.70024707,0.00010869,2]
[352396038,1739076654399,-62114.78085533,0.0001087,2]
[352396039,1739076654408,-864.82696148,0.00010871,2]
[352396040,1739076654418,-40113.37848559,0.00010872,2]
[352396041,1739076654427,-313.81627832,0.00010874,2]
[352396042,1739076654438,-7468.91430523,0.00010875,2]
[352396043,1739076654448,-62114.78085533,0.00010875,2]
[352396044,1739076654458,-271114.68544987,0.00010878,2]
[352396045,1739076654467,-16143.73862234,0.00010878,2]
[352396046,1739076654477,-509.16977983,0.0001088,2]
[352396047,1739076654487,-509.16977983,0.00010881,2]
[352396048,1739076654496,-509.16977983,0.00010883,2]
[352396049,1739076654506,-7468.91430523,0.00010884,2]
[352396050,1739076654516,-271114.68544985,0.00010884,2]
[352396051,1739076654525,-125419.08034823,0.00010886,2]
[352396052,1739076654534,-40113.37848559,0.00010886,2]
[352396053,1739076654543,-509.16977983,0.00010887,2]
[352396054,1739076654555,-313.81627832,0.00010888,2]
[352396055,1739076654565,-8379.16743371,0.00010889,2]
[352396056,1739076654574,-659.91,0.0001089,2]
[352396057,1739076654585,-1523.21,0.0001089,2]
[352396058,1739076654595,-4000.0,0.0001089,2]
[352396059,1739076654605,-788.97,0.0001089,2]
[352396060,1739076654614,-500.0,0.0001089,2]
[352396061,1739076654623,-601.66,0.0001089,2]
[352396062,1739076654633,-875.01,0.0001089,2]
[352396063,1739076654643,-500.0,0.0001089,2]
[352396064,1739076654654,-562.88,0.0001089,2]
[352396065,1739076654663,-500.0,0.0001089,2]
[352396066,1739076654673,-500.0,0.0001089,2]
[352396067,1739076654683,-591.61298277,0.0001089,2]
[352396068,1739076654692,-868.43,0.0001089,2]
[352396069,1739076654702,-1231.28,0.0001089,2]
[352396070,1739076654712,-500.0,0.0001089,2]
[352396071,1739076654721,-500.0,0.0001089,2]
[352396072,1739076654731,-526.88,0.0001089,2]
[352396073,1739076654740,-1294.54,0.0001089,2]
[352396074,1739076654750,-500.0,0.0001089,2]
[352396075,1739076654760,-532.97,0.0001089,2]
[352396076,1739076654770,-569.17,0.0001089,2]
[352396077,1739076654779,-595.69,0.0001089,2]
[352396078,1739076654789,-561.26,0.0001089,2]
[352396079,1739076654799,-614.2,0.0001089,2]
[352396080,1739076654808,-934.74,0.0001089,2]
[352396081,1739076654818,-1217.68,0.0001089,2]
[352396082,1739076654827,-576.79,0.0001089,2]
[352396083,1739076654837,-2420.22,0.0001089,2]
[352396084,1739076654849,-500.0,0.0001089,2]
[352396085,1739076654859,-553.85,0.0001089,2]
[352396086,1739076654868,-802.79,0.0001089,2]
[352396087,1739076654878,-500.0,0.0001089,2]
[352396088,1739076654888,-500.0,0.0001089,2]
[352396089,1739076654898,-696.38,0.0001089,2]
[352396090,1739076654907,-710.21,0.0001089,2]
[352396091,1739076654916,-500.0,0.0001089,2]
[352396092,1739076654925,-578.14,0.0001089,2]
[352396093,1739076654935,-930.43,0.0001089,2]
[352396094,1739076654944,-500.0,0.0001089,2]
[352396095,1739076654954,-951.34,0.0001089,2]
[352396096,1739076654963,-1820.59,0.0001089,2]
[352396097,1739076654973,-500.0,0.0001089,2]
[352396098,1739076654982,-372.78688962,0.0001089,2]
[352396099,1739076654992,-593.69,0.0001089,2]
[352396100,1739076655001,-500.0,0.0001089,2]
[352396101,1739076655010,-505.59,0.0001089,2]
[352396102,1739076655020,-768.25,0.0001089,2]
[352396103,1739076655030,-1073.3,0.0001089,2]
[352396104,1739076655039,-500.0,0.0001089,2]
[352396105,1739076655048,-900.17701083,0.00010891,2]
[352396106,1739076655058,-25137.50230111,0.00010892,2]
[352396107,1739076655067,-271114.68544987,0.00010894,2]
[352396108,1739076655076,-7468.91430523,0.00010896,2]
[352396109,1739076655086,-125419.08034823,0.00010898,2]
[352396110,1739076655097,-500.0,0.00010899,2]
[352396111,1739076655106,-8674.82431711,0.00010899,2]
[352396112,1739076655115,-16143.73862234,0.00010899,2]
[352396113,1739076655124,-271114.68544987,0.000109,2]
[352396114,1739076655134,-113731.19123388,0.000109,2]
[352396115,1739076655143,-150.0,0.00010931,2]
[352396116,1739076655153,-1277.473,0.00010949,2]
[352396117,1739076655162,-2024.0,0.00010949,2]
[352396118,1739076655172,-150.0,0.00010949,2]
[352396119,1739076655181,-638.0,0.00010949,2]
[352396120,1739076655191,-584.854,0.00010949,2]
[352396121,1739076655200,-1827.0,0.00010949,2]
[352396122,1739076655209,-783.0,0.00010949,2]
[352396123,1739076655219,-1271.191,0.00010949,2]
[352396124,1739076655228,-907.0,0.00010949,2]
[352396125,1739076655237,-2954.0,0.00010949,2]
[352396126,1739076655247,-545.834,0.00010949,2]
[352396127,1739076655256,-3913.0,0.00010949,2]
[352396128,1739076655265,-1006.0,0.00010949,2]
[352396129,1739076655274,-150.919,0.00010949,2]
[352396130,1739076655283,-1109.0,0.00010949,2]
[352396131,1739076655292,-150.0,0.00010958,2]
[352396132,1739076655301,-426.66,0.00010958,2]
[352396133,1739076655310,-500.0,0.00010958,2]
[352396134,1739076655320,-500.0,0.00010958,2]
[352396135,1739076655330,-4000.0,0.00010959,2]
[352396136,1739076655339,-150.0,0.00010959,2]
[352396137,1739076655350,-250.0,0.00010987,2]
[352396138,1739076655360,-5354.5534017,0.00010991,2]
[352396139,1739076655369,-20253.4374498,0.00010991,2]
[352396140,1739076655378,-809.3160604,0.00010991,2]
[352396141,1739076655387,-705.3115316,0.00010999,2]
[352396142,1739076655549,-587.15,0.00010999,2]
[352396143,1739076655563,-829.28,0.00010999,2]
[352396144,1739076655572,-500.0,0.00010999,2]
[352396145,1739076655581,-1330608.4491533,0.00011,3]
[352396146,1739076655771,-346.97868278,0.00011,3]
[352396147,1739076655783,-698.76346784,0.00011,3]
[352396148,1739076655795,-1270.15857547,0.00011,3]
[352396149,1739076655806,-814.6,0.00011,3]
[352396150,1739076655818,-1693.3984075,0.00011,3]
[352396151,1739076655829,-41969.44977884,0.00011,3]
[352396152,1739076655841,-87223.12876162,0.00011,3]
[352396153,1739076655854,-5010.0,0.00011,3]
[352396154,1739076655865,-200824.78675383,0.00011,3]
[352396155,1739076655876,-9337.25086476,0.00011,3]
[352396156,1739076655888,-168588.94454194,0.00011,3]
[352396157,1739076655901,-2675.90331643,0.00011,3]
[352396158,1739076655913,-1236.18809784,0.00011,3]
[352396159,1739076655924,-463.72725999,0.00011,3]
[352396160,1739076655936,-306.94443232,0.00011,3]
[352396161,1739076655948,-381.28266465,0.00011,3]
[352396162,1739076655961,-4143.27729644,0.00011,3]
[352396163,1739076655972,-4093.47834983,0.00011,3]
[352396164,1739076655983,-1746.3324078,0.00011,3]
[352396165,1739076655996,-4980.16031994,0.00011,3]
[352396166,1739076656007,-11148.5019612,0.00011,3]
[352396167,1739076656019,-1660.07913423,0.00011,3]
[352396168,1739076656031,-475.8703,0.00011,3]
[352396169,1739076656167,-500.0,8.835e-05,2]
[352396170,1739076656177,-51003.86711108,0.00011,3]
[352396171,1739076656189,-27402.16630377,0.00011,3]
[352396172,1739076656200,-25893.7019215,0.00011,3]
[352396173,1739076656212,-537.1366418,0.00011,3]
[352396174,1739076656224,-89007.42602235,0.00011,3]
[352396175,1739076656236,-135761.00524484,0.00011,3]
[352396176,1739076656248,-473.69044148,0.00011,3]
[352396177,1739076656262,-3399.9997,0.00011,3]
[352396178,1739076656274,-499.26982462,0.00011,3]
[352396179,1739076656286,-5776.74168946,0.00011,3]
[352396180,1739076656298,-18329.21699254,0.00011,3]
[352396181,1739076656310,-12293.7488,0.00011,3]
[352396182,1739076656321,-1668.84497925,0.00011,3]
[352396183,1739076656332,-2306.71483423,0.00011,3]
[352396184,1739076656344,-26295.82231094,0.00011,3]
[352396185,1739076656360,-2832.2,0.00011,3]
[352396186,1739076656609,-338.1127,8.835e-05,2]
[352396187,1739076656621,-163.58378468,8.835e-05,2]
[352396188,1739076656632,-504.3322542,8.835e-05,2]
[352396189,1739076656642,-500.0,8.835e-05,2]
[352396190,1739076656652,-500.0,8.835e-05,2]
[352396191,1739076656662,-18913.71764054,0.00011,3]
[352396192,1739076656673,-322.8916,0.00011,3]
[352396193,1739076656685,-440.05008271,0.00011,3]
[352396194,1739076656701,-317.89079433,0.00011,3]
[352396195,1739076656723,-500.0,8.835e-05,2]
[352396196,1739076656732,-179.40528476,0.00011,3]
[352396197,1739076656812,-500.0,8.972e-05,2]
[352396198,1739076656822,-500.0,9.109e-05,2]
[352396199,1739076656832,-1438.43008209,0.00011,3]
[352396200,1739076656843,-678.14139368,0.00011,3]
[352396201,1739076656856,-1220.31603624,0.00011,3]
[352396202,1739076656867,-300.0,0.00011,3]
[352396203,1739076659946,9980.0,9.4e-05,12]
[352396204,1739076679160,8395.0,9.5e-05,13]
[352396206,1739076875662,1000.0,7.687e-05,2]
[352396207,1739076919728,2933.54,8.212e-05,2]
[352396208,1739077071660,359.0,0.0002,120]
[352396209,1739077074957,200.0,7.852e-05,2]
[352396210,1739077192663,638.31,7.894e-05,2]
[352396211,1739077224584,300.0,0.0002,120]
[352396212,1739077231002,824.0,0.0002,120]
[352396213,1739077237527,392.16,7.809e-05,2]
[352396214,1739077300943,23900.0,7.865e-05,2]
[352396215,1739077398238,280.07,7.842e-05,2]
[352396217,1739077576004,2000.0,7.972e-05,2]
[352396218,1739077584769,268.85,7.972e-05,2]
[352396219,1739077610343,962.52,7.962e-05,2]
[352396220,1739077624391,200.0,7.915e-05,2]
[352396233,1739077835055,-150.0,8.218e-05,2]
[352396234,1739077835065,-167.54,8.219e-05,2]
[352396235,1739077835075,-1000.0,8.219e-05,2]
[352396236,1739077835085,-250.0,8.219e-05,2]
[352396237,1739077835094,-3988.41,8.219e-05,2]
[352396238,1739077835103,-923.1,8.219e-05,2]
[352396239,1739077835112,-453.96844227,8.219e-05,2]
[352396240,1739077835124,-367.98155773,8.219e-05,2]
[352396241,1739077835134,-394.19386444,8.219e-05,2]
[352396242,1739077835145,-1598.5381823,8.219e-05,2]
[352396243,1739077835157,-499.34874343,8.219e-05,2]
[352396244,1739077835173,-20523.84582342,8.219e-05,2]
[352396245,1739077835182,-159.87,8.337e-05,2]
[352396246,1739077835191,-159.87,8.341e-05,2]
[352396247,1739077835201,-159.87,8.345e-05,2]
[352396248,1739077835211,-159.87,8.348e-05,2]
[352396249,1739077835221,-159.87,8.352e-05,2]
[352396250,1739077835230,-159.87,8.356e-05,2]
[352396251,1739077835240,-159.87,8.36e-05,2]
[352396252,1739077835249,-2143.9167793,8.364e-05,2]
[352396253,1739077835258,-159.87,8.364e-05,2]
[352396254,1739077835268,-159.87,8.367e-05,2]
[352396255,1739077835277,-159.87,8.371e-05,2]
[352396256,1739077835287,-159.87,8.375e-05,2]
[352396257,1739077835296,-159.87,8.379e-05,2]
[352396258,1739077835306,-9114.4406,8.699e-05,2]
[352396259,1739077835316,-2010.4966,8.699e-05,2]
[352396260,1739077835325,-175.49,8.709e-05,2]
[352396261,1739077835336,-1875.44639019,8.784e-05,2]
[352396262,1739077835346,-1875.44639019,8.784e-05,2]
[352396263,1739077835356,-299.100628,8.835e-05,2]
[352396264,1739077835365,-500.0,8.835e-05,2]
[352396265,1739077835375,-500.0,8.835e-05,2]
[352396266,1739077835384,-571.66368905,8.835e-05,2]
[352396267,1739077835393,-259.30586655,8.835e-05,2]
[352396268,1739077835405,-240.69413345,8.835e-05,2]
[352396269,1739077835415,-399.20599455,8.835e-05,2]
[352396270,1739077835430,-100.79400545,8.835e-05,2]
[352396271,1739077835439,-500.0,8.835e-05,2]
[352396272,1739077835449,-488.89599455,8.835e-05,2]
[352396273,1739077835490,-11.10400545,8.835e-05,2]
[352396274,1739077835500,-500.0,8.835e-05,2]
[352396275,1739077835510,-500.0,8.835e-05,2]
[352396276,1739077835519,-500.0,8.835e-05,2]
[352396278,1739077835529,-500.0,8.835e-05,2]
[352396280,1739077835538,-500.0,8.835e-05,2]
[352396282,1739077835547,-500.0,8.835e-05,2]
[352396284,1739077835555,-500.0,8.835e-05,2]
[352396286,1739077835566,-103.86934455,8.835e-05,2]
[352396288,1739077835577,-391.79290149,8.835e-05,2]
[352396289,1739077835588,-4.33775396,8.835e-05,2]
[352396291,1739077835597,-500.0,8.835e-05,2]
[352396292,1739077835607,-500.19077581,8.835e-05,2]
[352396293,1739077835618,-500.0,8.835e-05,2]
[352396294,1739077835628,-500.0,8.835e-05,2]
[352396295,1739077835641,-79.56372205,8.835e-05,2]
[352396296,1739077835653,-255.83385723,8.835e-05,2]
[352396297,1739077835685,-164.60242072,8.835e-05,2]
[352396298,1739077835695,-500.0,8.835e-05,2]
[352396300,1739077835704,-287.68,8.835e-05,2]
[352396302,1739077835714,-500.0,8.835e-05,2]
[352396304,1739077835723,-500.0,8.835e-05,2]
[352396306,1739077835732,-500.0,8.835e-05,2]
[352396308,1739077835742,-500.0,8.835e-05,2]
[352396310,1739077835751,-504.20199347,8.835e-05,2]
[352396312,1739077835760,-500.0,8.835e-05,2]
[352396314,1739077835770,-511.3571225,8.835e-05,2]
[352396316,1739077835780,-506.23468025,8.835e-05,2]
[352396318,1739077835789,-504.83719128,8.835e-05,2]
[352396320,1739077835798,-500.0,8.835e-05,2]
[352396322,1739077835808,-500.0,8.835e-05,2]
[352396324,1739077835817,-500.0,8.835e-05,2]
[352396326,1739077835827,-500.0,8.835e-05,2]
[352396328,1739077835837,-500.95728286,8.835e-05,2]
[352396330,1739077835847,-502.51813913,8.835e-05,2]
[352396332,1739077835857,-503.27509388,8.835e-05,2]
[352396334,1739077835866,-505.43572588,8.835e-05,2]
[352396336,1739077835876,-500.0,8.835e-05,2]
[352396338,1739077835886,-500.0,8.835e-05,2]
[352396340,1739077835895,-207.56401978,8.835e-05,2]
[352396367,1739077837329,-292.43598022,8.835e-05,2]
[352396369,1739077837340,-500.0,8.835e-05,2]
[352396371,1739077837349,-502.73492573,8.835e-05,2]
[352396372,1739077837359,-496.60381153,8.835e-05,2]
[352396373,1739077837370,-9.68983429,8.835e-05,2]
[352396374,1739077837380,-353.91630366,8.835e-05,2]
[352396375,1739077837403,-150.2334567,8.835e-05,2]
[352396376,1739077837412,-393.25616105,8.835e-05,2]
[352396377,1739077837501,-107.83308509,8.835e-05,2]
[352396378,1739077837510,-500.0,8.835e-05,2]
[352396379,1739077837519,-500.0,8.835e-05,2]
[352396380,1739077837528,-500.0,8.835e-05,2]
[352396381,1739077837538,-500.0,8.835e-05,2]
[352396382,1739077837547,-500.0,8.835e-05,2]
[352396383,1739077837556,-482.17418995,8.835e-05,2]
[352396384,1739077837565,-500.0,8.835e-05,2]
[352396385,1739077837574,-502.23818215,8.835e-05,2]
[352396386,1739077837585,-500.0,8.835e-05,2]
[352396387,1739077837594,-500.0,8.835e-05,2]
[352396388,1739077837603,-500.0,8.835e-05,2]
[352396389,1739077837612,-500.0,8.835e-05,2]
[352396390,1739077837623,-500.0,8.835e-05,2]
[352396391,1739077837632,-500.0,8.835e-05,2]
[352396392,1739077837643,-500.0,8.835e-05,2]
[352396393,1739077837652,-500.0,8.835e-05,2]
[352396394,1739077837663,-502.61703551,8.835e-05,2]
[352396395,1739077837674,-500.0,8.835e-05,2]
[352396397,1739077837683,-500.0,8.835e-05,2]
[352396399,1739077837692,-500.0,8.835e-05,2]
[352396401,1739077837702,-500.0,8.835e-05,2]
[352396403,1739077837712,-500.0,8.835e-05,2]
[352396405,1739077837721,-500.0,8.835e-05,2]
[352396407,1739077837730,-500.0,8.835e-05,2]
[352396409,1739077837739,-500.0,8.835e-05,2]
[352396411,1739077837747,-500.0,8.835e-05,2]
[352396413,1739077837758,-500.0,8.835e-05,2]
[352396415,1739077837767,-500.0,8.835e-05,2]
[352396417,1739077837776,-500.0,8.835e-05,2]
[352396419,1739077837785,-500.0,8.835e-05,2]
[352396421,1739077837795,-500.0,8.835e-05,2]
[352396423,1739077837804,-500.0,8.835e-05,2]
[352396425,1739077837814,-200.81417576,8.835e-05,2]
[352396427,1739077837823,-500.0,8.835e-05,2]
[352396429,1739077837832,-500.0,8.835e-05,2]
[352396431,1739077837841,-500.0,8.835e-05,2]
[352396433,1739077837850,-500.0,8.835e-05,2]
[352396435,1739077837860,-500.0,8.835e-05,2]
[352396437,1739077837872,-502.6206974,8.835e-05,2]
[352396439,1739077837881,-500.0,8.835e-05,2]
[352396441,1739077837890,-501.53299969,8.835e-05,2]
[352396442,1739077837911,-500.0,8.835e-05,2]
[352396445,1739077837922,-500.0,8.835e-05,2]
[352396447,1739077837938,-500.0,8.835e-05,2]
[352396449,1739077837947,-500.0,8.835e-05,2]
[352396451,1739077837957,-500.0,8.835e-05,2]
[352396452,1739077837966,-482.62,8.835e-05,2]
[352396454,1739077837977,-500.0,8.835e-05,2]
[352396456,1739077837986,-500.0,8.835e-05,2]
[352396458,1739077837996,-500.0,8.835e-05,2]
[352396460,1739077838007,-500.0,8.835e-05,2]